bitfinex/quotes_SOLUSD_20241013
["timestamp","ask_amount","ask_price","bid_price","bid_amount"]
[1728853177403,2.95890423,146.6,146.57,23.8792]
[1728853177690,2.95890423,146.6,146.57,17.0566]
[1728853177883,4.14621829,146.6,146.57,17.0566]
[1728853178095,2.95890423,146.59,146.57,17.0566]
[1728853180293,2.95890423,146.59,146.57,28.49296685]
[1728853180499,15.10148817,146.63,146.58,6.8222]
[1728853180704,4.148468,146.62,146.58,6.8222]
[1728853180886,2.96132492,146.61,146.58,6.8222]
[1728853181081,2.96132492,146.6,146.58,6.8222]
[1728853181401,1.18714308,146.62,146.58,6.8222]
[1728853181578,2.9619934,146.61,146.58,6.8222]
[1728853181773,2.9619934,146.6,146.58,6.8222]
[1728853181992,1.18714308,146.62,146.58,6.8222]
[1728853182195,2.96199136,146.61,146.58,6.8222]
[1728853182398,2.96199136,146.6,146.58,6.8222]
[1728853182690,1.18714308,146.62,146.58,6.8222]
[1728853182894,2.96276876,146.61,146.58,6.8222]
[1728853183100,2.96276876,146.6,146.58,6.8222]
[1728853183266,2.96276876,146.59,146.58,6.8222]
[1728853183471,2.96276876,146.61,146.58,6.8222]
[1728853183690,2.96276876,146.6,146.58,6.8222]
[1728853183892,2.96276876,146.59,146.58,6.8222]
[1728853184502,2.96444349,146.61,146.59,6.8216]
[1728853184676,2.96444444,146.6,146.59,6.8216]
[1728853186183,2.96627855,146.6,146.59,6.8216]
[1728853187008,2.96627855,146.6,146.58,6.8221]
[1728853187188,2.96627855,146.59,146.58,6.8221]
[1728853193607,2.96749202,146.59,146.58,6.8221]
[1728853206019,2.96749202,146.59,146.57,23.8792]
[1728853206222,2.96749202,146.58,146.57,23.8792]
[1728853207396,1.18730633,146.6,146.57,23.8792]
[1728853207600,2.97079471,146.59,146.57,23.8792]
[1728853207926,2.97079471,146.58,146.57,23.8792]
[1728853208635,2.97079471,146.58,146.57,17.0566]
[1728853209002,2.97119481,146.58,146.57,17.0566]
[1728853209525,2.97119481,146.58,146.57,23.8792]
[1728853211224,2.97252368,146.58,146.57,23.8792]
[1728853213507,2.97252368,146.58,146.57,35.31556685]
[1728853215707,2.97252368,146.58,146.57,23.8792]
[1728853218832,2.97252368,146.58,146.57,35.31556685]
[1728853222340,1.1872122,146.62,146.58,6.822]
[1728853222536,2.97491569,146.61,146.58,6.822]
[1728853222741,2.97491569,146.6,146.58,6.822]
[1728853223043,2.97491569,146.59,146.58,6.822]
[1728853228546,2.97491569,146.59,146.58,18.25836685]
[1728853229116,2.97491569,146.59,146.58,6.822]
[1728853229829,2.97491569,146.59,146.57,23.8791]
[1728853230023,1.1872122,146.62,146.58,6.8222]
[1728853230345,2.97733895,146.61,146.58,6.8222]
[1728853230548,2.97733895,146.6,146.58,6.8222]
[1728853230750,2.97733895,146.59,146.58,6.8222]
[1728853236652,2.97733895,146.59,146.58,62.03545085]
[1728853237450,1.18706375,146.65,146.58,55.21325085]
[1728853237630,2.97704068,146.64,146.59,11.43636685]
[1728853237833,2.97704068,146.63,146.59,18.25766685]
[1728853238022,2.97704068,146.62,146.59,18.25766685]
[1728853238238,2.97704068,146.61,146.59,18.25766685]
[1728853238442,2.97704068,146.6,146.59,18.25766685]
[1728853240855,2.97704068,146.6,146.59,6.8213]
[1728853241029,2.97704068,146.6,146.59,18.25766685]
[1728853241229,8.00606375,146.65,146.6,6.8211]
[1728853241528,2.97558404,146.64,146.6,6.8211]
[1728853241825,2.97558404,146.63,146.6,6.8211]
[1728853242130,2.97558404,146.62,146.6,6.8211]
[1728853242328,2.97558404,146.61,146.6,6.8211]
[1728853246770,2.97558404,146.61,146.59,18.25796685]
[1728853246937,2.97558404,146.6,146.59,6.8216]
[1728853248860,6.8195,146.64,146.59,6.8216]
[1728853249064,2.97386997,146.6,146.59,6.8216]
[1728853249358,2.97386997,146.6,146.59,18.25796685]
[1728853253286,2.97386997,146.6,146.59,42.03485085]
[1728853263185,1.18707925,146.64,146.61,6.8206]
[1728853263381,2.97279824,146.63,146.61,6.8206]
[1728853263685,2.97279824,146.62,146.61,6.8206]
[1728853266793,2.97279824,146.62,146.58,20.0]
[1728853267087,2.97279824,146.61,146.58,26.8221]
[1728853267292,2.97279824,146.6,146.58,26.8221]
[1728853267485,2.97279824,146.59,146.58,26.8221]
[1728853268274,2.97279824,146.59,146.57,23.8787]
[1728853268469,2.97279824,146.58,146.57,43.8787]
[1728853269894,2.97279824,146.58,146.57,79.09195085]
[1728853270590,17.77907925,146.64,146.59,6.8214]
[1728853270785,2.9729304,146.63,146.59,6.8214]
[1728853270985,2.9729304,146.62,146.59,6.8214]
[1728853271190,2.9729304,146.61,146.59,6.8214]
[1728853271398,2.9729304,146.6,146.59,6.8214]
[1728853274096,24.59847925,146.64,146.59,18.25776685]
[1728853274579,2.97353186,146.63,146.6,6.8211]
[1728853274782,2.97353186,146.62,146.6,6.8211]
[1728853274983,2.97353186,146.61,146.6,6.8211]
[1728853275597,2.97353186,146.61,146.6,18.25746685]
[1728853278075,2.97353186,146.61,146.6,6.8211]
[1728853281607,17.77907925,146.64,146.6,6.8211]
[1728853281822,2.97457617,146.63,146.6,6.8211]
[1728853282015,2.97457617,146.62,146.6,6.8211]
[1728853282219,2.97457617,146.61,146.6,6.8211]
[1728853285507,6.8213,146.6,146.55,13.96135368]
[1728853285712,6.8213,146.6,146.55,6.8235]
[1728853285713,2.9749893,146.59,146.55,6.8235]
[1728853285917,2.97489893,146.58,146.55,6.8235]
[1728853286091,2.97489893,146.57,146.55,6.8235]
[1728853286291,2.97489893,146.56,146.55,6.8235]
[1728853287008,2.97489893,146.56,146.55,26.8235]
[1728853287724,2.97489893,146.56,146.54,23.8837]
[1728853287890,2.97489893,146.55,146.54,43.8837]
[1728853289292,2.97233851,146.55,146.54,37.0598]
[1728853289515,2.97233851,146.55,146.54,43.8838]
[1728853291519,2.97233851,146.55,146.54,55.32016685]
[1728853293100,6.8213,146.6,146.55,6.8232]
[1728853293424,2.97005198,146.59,146.55,6.8232]
[1728853293601,2.97005198,146.58,146.55,6.8232]
[1728853293799,2.97005198,146.57,146.55,6.8232]
[1728853294023,2.97005198,146.56,146.55,6.8232]
[1728853296922,2.96887985,146.56,146.55,6.8232]
[1728853297427,2.96887985,146.56,146.55,18.25956685]
[1728853300640,9.7135824,146.61,146.55,11.43636685]
[1728853300814,2.96779148,146.6,146.56,6.8231]
[1728853301118,2.96779148,146.59,146.56,6.8231]
[1728853301306,2.96779148,146.58,146.56,6.8231]
[1728853301508,2.96779148,146.57,146.56,6.8231]
[1728853308245,1.18742429,146.59,146.56,6.8231]
[1728853308440,2.96718993,146.58,146.56,6.8231]
[1728853308741,2.96718993,146.57,146.55,6.8235]
[1728853308918,2.96718993,146.56,146.55,6.8235]
[1728853312041,1.18742429,146.59,146.55,6.8235]
[1728853312245,2.96696404,146.58,146.55,6.8235]
[1728853312439,2.96696404,146.57,146.55,6.8235]
[1728853312639,2.96696404,146.56,146.55,6.8235]
[1728853321457,2.96696404,146.56,146.54,17.0598]
[1728853321674,2.96696404,146.55,146.54,23.8837]
[1728853321965,2.96696404,146.55,146.54,17.0598]
[1728853322336,2.96754306,146.55,146.54,17.0598]
[1728853326562,2.96754306,146.55,146.54,23.8838]
[1728853328161,2.96754306,146.55,146.54,35.32016685]
[1728853328337,1.70579961,146.61,146.57,17.0561]
[1728853328540,2.96825241,146.6,146.57,17.0561]
[1728853328758,2.96825241,146.59,146.57,17.0561]
[1728853328954,2.96825241,146.58,146.57,23.8787]
[1728853329155,2.96825241,146.58,146.57,35.31506685]
[1728853329355,2.96825241,146.58,146.57,55.31506685]
[1728853329747,2.89225392,146.63,146.6,6.8212]
[1728853330269,2.96819437,146.62,146.6,6.8212]
[1728853330573,2.96819437,146.61,146.6,6.8212]
[1728853333656,2.96843927,146.61,146.6,6.8212]
[1728853333974,2.96843927,146.61,146.6,18.25756685]
[1728853335259,2.96843927,146.61,146.6,38.25756685]
[1728853336276,2.96843927,146.61,146.6,62.03445085]
[1728853341371,2.01648987,146.66,146.64,6.8192]
[1728853341669,2.96666362,146.65,146.64,6.8192]
[1728853352790,2.96666362,146.65,146.63,23.8691]
[1728853353093,2.96666362,146.64,146.61,6.8203]
[1728853353310,2.94379679,146.63,146.61,6.8203]
[1728853353599,6.8189,146.65,146.61,6.8203]
[1728853353773,2.94380315,146.64,146.58,6.8221]
[1728853353971,26.5436259,146.63,146.58,6.8221]
[1728853354174,2.94380315,146.62,146.58,6.8221]
[1728853354369,2.94380315,146.61,146.58,6.8221]
[1728853354589,2.94380315,146.6,146.58,6.8221]
[1728853354795,23.59982275,146.63,146.57,17.0564]
[1728853354796,23.59982275,146.63,146.59,6.8216]
[1728853354969,2.94380309,146.62,146.59,6.8216]
[1728853355169,2.94380309,146.61,146.59,6.8216]
[1728853355392,2.94380309,146.6,146.59,6.8216]
[1728853355589,2.94380309,146.62,146.59,6.8216]
[1728853355797,2.94380309,146.61,146.59,6.8216]
[1728853356001,2.94380309,146.6,146.59,6.8216]
[1728853357104,16.77962275,146.63,146.59,6.8216]
[1728853357290,2.94389501,146.62,146.59,6.8216]
[1728853357478,2.94389501,146.61,146.59,6.8216]
[1728853357678,2.94389501,146.6,146.59,6.8216]
[1728853357888,2.94389501,146.62,146.59,6.8216]
[1728853358195,2.94389501,146.61,146.59,6.8216]
[1728853358402,2.94389501,146.6,146.59,6.8216]
[1728853359172,2.94389501,146.62,146.59,6.8216]
[1728853359372,2.94389501,146.61,146.59,6.8216]
[1728853359595,2.94389501,146.6,146.59,6.8216]
[1728853359793,2.94389501,146.62,146.59,6.8216]
[1728853359985,2.94389501,146.61,146.59,6.8216]
[1728853360185,2.94389501,146.6,146.59,6.8216]
[1728853360379,2.94389501,146.62,146.59,6.8216]
[1728853360581,2.94389501,146.61,146.59,6.8216]
[1728853360801,2.94389501,146.6,146.59,6.8216]
[1728853360989,16.77962275,146.63,146.59,6.8216]
[1728853361189,2.94439271,146.62,146.59,6.8216]
[1728853361398,2.94439271,146.61,146.59,6.8216]
[1728853361597,2.94439271,146.6,146.59,6.8216]
[1728853361794,2.94439271,146.62,146.59,6.8216]
[1728853362097,2.94439271,146.62,146.57,28.49276685]
[1728853362098,4.64957351,146.61,146.58,6.8222]
[1728853362283,2.94439271,146.6,146.58,6.8222]
[1728853362482,2.94439271,146.59,146.58,6.8222]
[1728853362683,2.94439271,146.61,146.58,6.8222]
[1728853362881,2.94439271,146.6,146.58,6.8222]
[1728853363081,2.94439271,146.59,146.58,6.8222]
[1728853363281,2.94439271,146.61,146.58,6.8222]
[1728853363481,2.94439271,146.6,146.58,6.8222]
[1728853363804,2.94439271,146.59,146.58,6.8222]
[1728853364192,2.94439271,146.61,146.58,6.8222]
[1728853364507,2.94439271,146.6,146.58,6.8222]
[1728853364709,2.94439271,146.59,146.58,6.8222]
[1728853365497,2.94439271,146.61,146.58,6.8222]
[1728853365804,2.94439271,146.6,146.58,6.8222]
[1728853366107,2.94439271,146.59,146.58,6.8222]
[1728853366398,2.94439271,146.61,146.58,6.8222]
[1728853366603,2.94439271,146.6,146.58,6.8222]
[1728853366807,2.94439271,146.59,146.58,6.8222]
[1728853367585,9.71303884,146.62,146.58,6.8222]
[1728853367586,2.94439271,146.61,146.58,6.8222]
[1728853367801,2.94439271,146.6,146.58,6.8222]
[1728853367984,2.94439271,146.59,146.58,6.8222]
[1728853369094,2.94488374,146.59,146.58,6.8222]
[1728853377309,2.94618287,146.61,146.58,6.8222]
[1728853377509,2.94618287,146.6,146.58,6.8222]
[1728853377715,1.18727149,146.62,146.59,6.8217]
[1728853377925,2.94634731,146.61,146.59,6.8217]
[1728853378107,2.94634731,146.6,146.59,6.8217]
[1728853379714,2.94634731,146.6,146.57,17.0564]
[1728853379715,2.94634731,146.6,146.57,23.8786]
[1728853379893,2.94634731,146.59,146.57,23.8786]
[1728853380219,2.94673905,146.58,146.57,23.8786]
[1728853380804,2.892379,146.62,146.58,6.822]
[1728853380997,2.94672551,146.61,146.58,6.822]
[1728853381191,2.94672551,146.6,146.58,6.822]
[1728853381391,2.94672551,146.59,146.58,6.822]
[1728853388217,1.18727149,146.62,146.59,6.8215]
[1728853388423,2.94982337,146.61,146.59,6.8215]
[1728853388624,1.18727149,146.62,146.59,6.8215]
[1728853388625,2.94982337,146.6,146.59,6.8215]
[1728853395726,1.18727149,146.62,146.59,6.8215]
[1728853396024,2.94993116,146.61,146.59,6.8215]
[1728853396212,2.94993116,146.6,146.59,6.8215]
[1728853399461,1.18727149,146.62,146.59,6.8215]
[1728853399734,2.95026907,146.61,146.59,6.8215]
[1728853399899,2.95026907,146.6,146.59,6.8215]
[1728853405107,2.95026907,146.6,146.59,38.25786685]
[1728853405304,2.95026907,146.6,146.59,62.03475085]
[1728853408501,2.95026907,146.6,146.59,42.03475085]
[1728853408701,2.95026907,146.6,146.59,62.03475085]
[1728853415039,7.9102308,146.65,146.6,20.0]
[1728853415240,7.9102308,146.65,146.61,6.8204]
[1728853415420,2.9563041,146.64,146.61,6.8204]
[1728853415619,2.9563041,146.64,146.62,6.8202]
[1728853416324,7.9102308,146.65,146.62,6.8202]
[1728853416839,17.57604632,146.66,146.62,6.8202]
[1728853417225,2.9562625,146.65,146.62,6.8202]
[1728853417432,19.28084096,146.66,146.62,6.8202]
[1728853417622,26.09934096,146.66,146.62,6.8202]
[1728853418527,2.95603025,146.65,146.62,6.8202]
[1728853418838,2.95603025,146.64,146.62,6.8202]
[1728853419035,2.95603025,146.63,146.62,6.8202]
[1728853421740,2.95556778,146.63,146.62,6.8202]
[1728853424738,2.95556778,146.63,146.6,23.8731]
[1728853424923,2.95556778,146.62,146.6,23.8731]
[1728853425123,2.95556778,146.61,146.6,17.0522]
[1728853425334,2.95556778,146.61,146.59,6.8217]
[1728853425533,1.70529457,146.62,146.59,6.8217]
[1728853425719,2.95552478,146.61,146.59,6.8217]
[1728853426042,2.95552478,146.6,146.59,6.8217]
[1728853428758,2.95552478,146.6,146.57,17.0561]
[1728853429051,2.95552478,146.59,146.57,23.8787]
[1728853429243,2.95552478,146.58,146.57,23.8787]
[1728853429432,2.95605481,146.58,146.57,23.8787]
[1728853429833,2.95605481,146.58,146.54,17.0596]
[1728853430155,2.95605481,146.57,146.55,6.8235]
[1728853430365,2.95605481,146.56,146.55,6.8235]
[1728853431124,2.95605481,146.56,146.54,23.8836]
[1728853431362,2.95605481,146.55,146.54,23.8836]
[1728853431525,2.95605481,146.55,146.54,43.8836]
[1728853431726,2.95605481,146.55,146.54,23.8836]
[1728853436944,1.70585331,146.58,146.54,23.8836]
[1728853437257,2.93594311,146.57,146.54,23.8836]
[1728853437457,2.93594311,146.56,146.54,23.8836]
[1728853437640,2.93594311,146.55,146.54,23.8836]
[1728853440765,8.52702103,146.6,146.55,6.8233]
[1728853440945,2.93521339,146.59,146.55,6.8233]
[1728853441137,4.64094887,146.58,146.55,6.8233]
[1728853441341,2.93521339,146.57,146.55,6.8233]
[1728853441540,2.93521339,146.56,146.55,6.8233]
[1728853441848,2.93521339,146.56,146.54,23.8836]
[1728853442055,2.93521339,146.55,146.54,23.8836]
[1728853443439,2.93521339,146.55,146.54,17.0596]
[1728853445835,2.93521339,146.55,146.53,6.8244]
[1728853446041,2.93521339,146.54,146.53,6.8244]
[1728853446245,2.93521339,146.54,146.51,17.0631]
[1728853446450,2.89372687,146.56,146.52,6.8248]
[1728853446644,2.9329577,146.55,146.52,6.8248]
[1728853446849,4.63897416,146.54,146.51,23.8883]
[1728853447051,2.9329577,146.53,146.51,23.8883]
[1728853447250,1.70617026,146.55,146.51,23.8883]
[1728853447444,2.932174,146.54,146.51,17.0631]
[1728853447643,4.63844348,146.53,146.51,17.0631]
[1728853447963,1.70626948,146.53,146.51,17.0631]
[1728853448138,1.70629021,146.54,146.51,17.0631]
[1728853448445,2.9320678,146.53,146.51,17.0631]
[1728853448647,1.70629021,146.54,146.51,17.0631]
[1728853448846,2.9314457,146.53,146.5,6.8258]
[1728853449047,4.63786844,146.52,146.49,6.8263]
[1728853449355,1.7064457,146.52,146.49,6.8263]
[1728853449668,1.70642314,146.53,146.49,8.19143851]
[1728853449871,1.18792276,146.54,146.51,6.8253]
[1728853450542,1.18792276,146.54,146.52,6.8249]
[1728853450870,1.18792276,146.54,146.53,6.8245]
[1728853451042,6.8223,146.58,146.53,6.8245]
[1728853451365,2.8936851,146.57,146.53,6.8245]
[1728853452967,2.8936851,146.57,146.52,11.43636685]
[1728853453275,2.8936851,146.57,146.54,6.824]
[1728853455276,2.8936851,146.57,146.54,18.26036685]
[1728853455576,2.8936851,146.57,146.54,11.43636685]
[1728853455769,2.8936851,146.57,146.55,6.8235]
[1728853464090,2.8936851,146.57,146.54,6.8239]
[1728853466286,1.18766981,146.57,146.56,6.8231]
[1728853466481,1.70587291,146.59,146.56,6.8231]
[1728853467375,1.70565033,146.6,146.56,6.8231]
[1728853472377,1.70565033,146.6,146.55,6.8235]
[1728853472378,8.52725033,146.6,146.55,6.8235]
[1728853480805,1.70565033,146.6,146.55,11.43636685]
[1728853481101,1.70565033,146.6,146.56,1.36457898]
[1728853482387,1.70565033,146.6,146.57,6.8226]
[1728853482777,1.70565033,146.6,146.56,1.36457898]
[1728853482981,2.89293942,146.61,146.58,6.8221]
[1728853490906,2.89293942,146.61,146.57,12.80070395]
[1728853491080,2.89293942,146.61,146.57,19.62320395]
[1728853500316,2.89293942,146.61,146.57,8.1868371]
[1728853500832,1.18735448,146.61,146.57,1.3643371]
[1728853501115,1.18735448,146.61,146.58,6.8221]
[1728853501323,1.18735448,146.61,146.59,6.8216]
[1728853501509,1.18735448,146.61,146.6,6.8212]
[1728853501818,1.70529109,146.64,146.6,6.8212]
[1728853502026,1.1870922,146.63,146.59,6.8217]
[1728853502199,1.7052486,146.62,146.59,6.8217]
[1728853502520,2.89233989,146.63,146.59,6.8217]
[1728853508944,2.89233989,146.63,146.59,8.18589588]
[1728853510117,2.89233989,146.63,146.59,6.8217]
[1728853510320,2.89233989,146.63,146.58,17.0547]
[1728853510321,1.70539374,146.62,146.56,22.2144]
[1728853510520,1.70539374,146.62,146.56,6.823]
[1728853511424,6.8213,146.6,146.56,6.823]
[1728853511736,1.70562553,146.59,146.56,6.823]
[1728853513248,2.89271848,146.63,146.55,29.85926787]
[1728853513545,6.8207,146.62,146.57,6.8226]
[1728853513858,1.70548699,146.61,146.57,6.8226]
[1728853517125,1.70548699,146.61,146.58,6.8222]
[1728853521745,1.70548699,146.61,146.56,11.43636685]
[1728853521945,1.70548699,146.61,146.57,6.8225]
[1728853522326,2.89275899,146.61,146.57,6.8225]
[1728853525246,2.89275899,146.61,146.53,15.3138]
[1728853525430,6.8227,146.57,146.52,31.00984188]
[1728853525750,6.8218,146.59,146.54,6.824]
[1728853525928,1.70583608,146.58,146.54,6.824]
[1728853526336,6.8222,146.58,146.54,6.824]
[1728853526537,1.70584121,146.57,146.54,6.824]
[1728853529134,1.70584121,146.57,146.52,28.49816685]
[1728853529135,1.70584121,146.57,146.53,6.8244]
[1728853530339,8.52854121,146.57,146.53,6.8244]
[1728853542092,8.52854121,146.57,146.53,8.18914791]
[1728853542574,9.71619009,146.57,146.53,8.18914791]
[1728853544181,9.71619009,146.57,146.53,6.8244]
[1728853544774,9.71619009,146.57,146.52,17.0618]
[1728853544975,2.89349009,146.57,146.52,23.8867]
[1728853545274,6.8236,146.55,146.52,17.0618]
[1728853545477,1.70615435,146.54,146.52,17.0618]
[1728853546187,8.53015435,146.54,146.49,17.0653]
[1728853546365,8.53015435,146.54,146.49,23.8916]
[1728853547486,6.8246,146.53,146.49,17.0653]
[1728853547787,1.70638357,146.52,146.49,17.0653]
[1728853547956,1.70638357,146.52,146.49,23.8916]
[1728853552985,1.70637919,146.53,146.49,23.8916]
[1728853557793,8.53097919,146.53,146.49,23.8916]
[1728853558090,1.70646655,146.52,146.49,23.8916]
[1728853558264,1.70646655,146.52,146.49,17.0653]
[1728853562400,1.70646655,146.52,146.46,23.8963]
[1728853562692,6.8259,146.5,146.46,17.0689]
[1728853562862,1.70678911,146.49,146.46,17.0689]
[1728853563203,1.70678911,146.49,146.46,23.8966]
[1728853563565,1.70678911,146.49,146.46,17.0689]
[1728853564086,8.53328911,146.49,146.45,6.8282]
[1728853564866,1.70678911,146.49,146.43,17.0726]
[1728853565067,6.8268,146.48,146.43,17.0726]
[1728853565388,1.70700693,146.47,146.44,6.8287]
[1728853565690,8.53380509,146.48,146.44,6.8287]
[1728853565894,1.70700731,146.47,146.44,6.8287]
[1728853566095,2.89520427,146.51,146.43,28.50896685]
[1728853566272,6.826,146.5,146.45,8.19360585]
[1728853566467,1.7068192,146.49,146.45,8.19360585]
[1728853567610,1.70681942,146.5,146.47,6.8273]
[1728853568591,1.70681942,146.5,146.46,6.8277]
[1728853569695,1.70681942,146.5,146.45,23.898]
[1728853569879,6.8265,146.49,146.45,23.898]
[1728853570084,1.70687694,146.48,146.45,23.898]
[1728853570805,2.89505196,146.51,146.45,23.898]
[1728853570973,6.826,146.5,146.45,23.898]
[1728853571166,1.70681524,146.49,146.45,23.898]
[1728853575987,8.53331524,146.49,146.45,23.898]
[1728853576181,8.53331524,146.49,146.45,17.0699]
[1728853576597,6.8273,146.47,146.42,40.4214]
[1728853576800,1.70709022,146.46,146.42,40.4214]
[1728853581702,1.70709022,146.46,146.42,23.9031]
[1728853581999,1.70709022,146.46,146.42,17.0735]
[1728853582191,32.9073,146.5,146.4,11.43636685]
[1728853582192,6.8283,146.45,146.4,11.43636685]
[1728853582394,32.9073,146.5,146.4,11.43636685]
[1728853582395,8.53612071,146.44,146.4,6.8305]
[1728853582897,8.53612071,146.44,146.39,23.9082]
[1728853583097,1.18879966,146.43,146.39,23.9082]
[1728853583299,8.01799966,146.43,146.39,17.0773]
[1728853583509,8.01799966,146.43,146.39,23.9083]
[1728853584309,1.18879966,146.43,146.39,23.9083]
[1728853584788,2.89630165,146.43,146.39,23.9083]
[1728853586018,1.18879966,146.43,146.4,18.26656685]
[1728853586222,1.18879966,146.43,146.41,1.36587543]
[1728853586419,1.18879966,146.43,146.41,12.80224228]
[1728853586595,1.18879966,146.43,146.42,6.8296]
[1728853586918,8.5345905,146.47,146.42,18.26596685]
[1728853587150,6.8268,146.48,146.44,11.43636685]
[1728853587290,1.18838086,146.46,146.44,11.43636685]
[1728853588401,1.18838086,146.46,146.44,18.26506685]
[1728853589906,1.18838086,146.46,146.44,11.43636685]
[1728853590208,1.18838086,146.46,146.43,18.26536685]
[1728853594330,1.18838086,146.46,146.43,6.829]
[1728853595335,1.18838086,146.46,146.43,8.1946134]
[1728853595840,1.18838086,146.46,146.43,6.829]
[1728853596050,1.18838086,146.46,146.42,6.8295]
[1728853597039,2.89540516,146.46,146.42,6.8295]
[1728853597428,1.18838086,146.46,146.42,6.8295]
[1728853598236,1.18838086,146.46,146.42,18.26586685]
[1728853600450,1.18838086,146.46,146.43,1.3656108]
[1728853600933,1.18838086,146.46,146.43,0.8656108]
[1728853601941,1.18838086,146.46,146.42,19.46603788]
[1728853602150,1.70701294,146.45,146.42,6.8295]
[1728853602446,8.01618086,146.46,146.42,6.8295]
[1728853602655,6.8305,146.41,146.38,7.11697095]
[1728853602939,1.70774405,146.4,146.36,6.8324]
[1728853603317,6.8305,146.41,146.36,6.8324]
[1728853603622,6.8305,146.41,146.36,8.03445487]
[1728853603828,6.8305,146.41,146.36,6.8324]
[1728853607131,1.70780455,146.4,146.36,6.8324]
[1728853607525,2.89680713,146.4,146.36,6.8324]
[1728853608636,1.18900258,146.4,146.36,8.03447303]
[1728853609157,1.18900258,146.4,146.37,6.8315]
[1728853609337,1.18900258,146.4,146.38,6.8313]
[1728853609538,1.18900258,146.4,146.37,6.8319]
[1728853609746,1.18900258,146.4,146.38,8.03307929]
[1728853611538,1.18900258,146.4,146.38,6.8314]
[1728853611749,1.18900258,146.4,146.36,28.51646685]
[1728853611750,1.18900258,146.4,146.37,6.8319]
[1728853612247,1.18900258,146.4,146.36,17.0801]
[1728853612248,2.89672534,146.4,146.36,23.9125]
[1728853612549,2.89672534,146.4,146.36,25.11456576]
[1728853613151,1.18900258,146.4,146.37,6.8319]
[1728853618657,1.18900258,146.4,146.37,8.03375722]
[1728853620456,1.18900258,146.4,146.37,7.03375722]
[1728853622360,1.18900258,146.4,146.37,5.8319]
[1728853623237,1.18900258,146.4,146.37,7.03374837]
[1728853625741,1.18900258,146.4,146.38,1.20184082]
[1728853625941,1.18900258,146.4,146.38,6.8314]
[1728853632354,1.18900258,146.4,146.39,19.46873577]
[1728853632668,8.53531207,146.46,146.42,6.8295]
[1728853632851,2.75407936,146.45,146.42,6.8295]
[1728853633036,1.18861118,146.46,146.44,34.28936685]
[1728853633240,1.18861118,146.46,146.45,12.6359912]
[1728853633437,1.70678516,146.53,146.45,12.6359912]
[1728853633641,1.18822236,146.5,146.45,12.6359912]
[1728853633867,2.75428382,146.49,146.45,12.6359912]
[1728853634051,2.75428382,146.48,146.45,12.6359912]
[1728853634248,1.18821,146.5,146.45,12.6359912]
[1728853634454,2.7543038,146.49,146.45,19.4641912]
[1728853634672,2.7543038,146.48,146.45,19.4641912]
[1728853634860,8.01411,146.5,146.45,19.4641912]
[1728853635053,2.75432654,146.49,146.45,19.4641912]
[1728853635265,2.75432654,146.48,146.45,19.4641912]
[1728853635568,8.01411,146.5,146.45,19.4641912]
[1728853635767,4.46094472,146.49,146.45,18.26456685]
[1728853635963,2.75417572,146.48,146.45,18.26456685]
[1728853636169,1.706769,146.49,146.45,18.26456685]
[1728853637250,8.01411,146.5,146.45,19.46414814]
[1728853637471,2.75377242,146.49,146.45,19.46414814]
[1728853637651,8.01411,146.5,146.45,19.46414814]
[1728853637852,2.75377242,146.49,146.45,19.46414814]
[1728853638052,8.01411,146.5,146.45,19.46414814]
[1728853638266,2.75377232,146.49,146.45,19.46414814]
[1728853638576,8.01411,146.5,146.45,19.46414814]
[1728853638870,4.46023884,146.49,146.45,18.26456685]
[1728853639071,1.70675435,146.49,146.45,18.26456685]
[1728853641669,1.70675435,146.49,146.44,22.853]
[1728853641878,6.8265,146.49,146.44,41.11796685]
[1728853642055,2.75265642,146.48,146.44,41.11796685]
[1728853642257,6.8265,146.49,146.44,41.11796685]
[1728853642958,2.75240947,146.48,146.45,6.8282]
[1728853643152,6.8265,146.49,146.45,6.8282]
[1728853648060,8.53365906,146.48,146.44,6.8286]
[1728853648583,8.53365906,146.48,146.43,35.33826685]
[1728853648953,1.70675906,146.48,146.41,20.0]
[1728853649151,6.8283,146.45,146.41,26.8301]
[1728853649384,1.70717948,146.44,146.4,40.4254]
[1728853650378,6.8283,146.45,146.4,40.4254]
[1728853650689,6.8283,146.45,146.41,1.20075653]
[1728853650869,6.8283,146.45,146.4,51.86176685]
[1728853654386,8.01693219,146.45,146.4,51.86176685]
[1728853661087,8.01693219,146.45,146.4,40.4254]
[1728853661398,11.28794168,146.44,146.4,17.076]